bitfinex/quotes_ETHUSD_20250815
["timestamp","ask_amount","ask_price","bid_price","bid_amount"]
[1755231470730,0.108,4638.3,4638.0,2.15609111]
[1755231470894,0.9375,4638.2,4638.0,2.15609111]
[1755231471222,0.9395,4638.8,4638.0,2.15609559]
[1755231471431,0.108,4638.5,4638.0,2.15609559]
[1755231471924,0.9321,4638.4,4637.9,0.108]
[1755231472298,0.9321,4638.3,4637.9,2.26412644]
[1755231472495,0.108,4638.5,4638.1,2.15602421]
[1755231473028,0.108,4638.5,4638.2,2.15600539]
[1755231473327,0.108,4638.5,4638.1,2.15604813]
[1755231473625,0.108,4638.5,4638.2,2.1559989]
[1755231473930,0.002,4638.8,4638.7,2.1557764]
[1755231475035,0.002,4638.8,4638.5,0.55]
[1755231475608,0.002,4638.8,4638.5,1.0138]
[1755231475809,0.002,4638.8,4638.7,2.6557764]
[1755231476041,0.002,4638.8,4638.7,2.7637764]
[1755231476246,0.002,4638.8,4638.7,4.59977891]
[1755231476914,0.002,4638.8,4638.7,4.14217891]
[1755231477144,0.002,4638.8,4638.7,2.7637764]
[1755231478310,0.002,4638.8,4638.7,3.2275764]
[1755231478837,0.002,4638.8,4638.7,2.7637764]
[1755231482039,0.002,4638.8,4638.7,6.0687764]
[1755231483745,0.002,4638.8,4638.7,10.31677636]
[1755231484047,0.002,4638.8,4638.7,8.23743891]
[1755231484844,1e-08,4639.1,4639.0,2.70563699]
[1755231485030,1e-08,4639.1,4639.0,9.03119335]
[1755231485230,1e-08,4639.1,4639.0,10.03903699]
[1755231486218,1e-08,4639.1,4639.0,9.58143699]
[1755231486420,1e-08,4639.1,4639.0,11.3374777]
[1755231487850,1e-08,4639.1,4639.0,10.8798777]
[1755231488150,1e-08,4639.1,4639.0,3.5620777]
[1755231488453,0.93210001,4639.1,4639.0,3.416]
[1755231488651,0.93210001,4639.1,4639.0,5.57163699]
[1755231488826,0.93210001,4639.1,4639.0,3.416]
[1755231489036,0.93210001,4639.1,4639.0,3.417]
[1755231489235,0.93210001,4639.1,4639.0,3.309]
[1755231489431,3.08769203,4639.1,4638.8,0.108]
[1755231489636,3.08769203,4639.1,4638.2,3.418]
[1755231489637,0.108,4638.9,4638.2,3.418]
[1755231489839,0.9321,4638.8,4638.2,3.418]
[1755231490139,0.9321,4638.7,4638.2,2.26399526]
[1755231490338,0.9321,4638.6,4638.2,2.26400324]
[1755231490545,0.9321,4638.5,4638.2,2.26400324]
[1755231490754,0.108,4638.9,4638.3,3.309]
[1755231490966,0.9321,4638.4,4638.3,3.309]
[1755231492235,0.9321,4638.4,4638.3,5.46496231]
[1755231492470,0.9321,4638.4,4637.0,5.822872]
[1755231492624,1e-08,4639.1,4637.0,5.822872]
[1755231492625,1.0401,4638.3,4637.6,0.108]
[1755231492830,1e-08,4639.1,4637.6,0.108]
[1755231492831,0.4762,4638.7,4638.3,2.15592426]
[1755231493037,0.9321,4638.6,4638.3,3.311]
[1755231493248,0.9321,4638.5,4638.0,5.46709982]
[1755231493466,0.9321,4638.4,4638.0,2.15609982]
[1755231493663,0.9321,4638.4,4638.0,5.46709982]
[1755231493664,1.0401,4638.4,4638.0,5.46709982]
[1755231493832,0.9321,4638.3,4638.0,5.46709982]
[1755231494032,2.15564548,4639.0,4638.1,2.15601264]
[1755231494364,1.0401,4638.7,4638.1,2.15601264]
[1755231494750,1.0401,4638.7,4638.3,2.15595524]
[1755231495060,1.0401,4638.7,4638.0,3.311]
[1755231495061,1.0401,4638.7,4638.2,2.15600387]
[1755231495263,1.0401,4638.7,4638.1,2.15605494]
[1755231495634,1.0401,4638.7,4638.2,2.15600352]
[1755231496059,0.9321,4638.6,4638.2,2.15600352]
[1755231496262,0.108,4638.7,4638.2,2.15600352]
[1755231496434,0.108,4638.7,4638.0,3.311]
[1755231496435,0.4559,4638.5,4638.1,2.15604745]
[1755231496639,0.9321,4638.4,4638.1,2.15604745]
[1755231497031,0.9321,4638.3,4638.1,2.15604745]
[1755231497767,0.9321,4638.3,4638.2,2.15600879]
[1755231497947,1.0401,4638.7,4638.3,2.15595527]
[1755231498270,0.9321,4638.6,4638.3,2.15595527]
[1755231498683,0.93210001,4639.1,4638.4,2.15591333]
[1755231498977,0.108,4638.9,4638.4,2.15591333]
[1755231499187,0.108,4638.9,4638.3,3.309]
[1755231499343,0.9321,4638.8,4637.7,2.15623077]
[1755231499545,0.108,4638.3,4637.8,2.15619462]
[1755231499746,0.9321,4638.2,4637.7,2.15620198]
[1755231500067,0.9321,4638.1,4637.6,0.108]
[1755231500384,0.108,4638.3,4637.6,0.108]
[1755231500385,0.9321,4638.0,4637.8,2.15619277]
[1755231500966,0.4762,4638.0,4637.9,2.15614825]
[1755231501267,0.4762,4638.0,4637.8,2.15618734]
[1755231501566,0.9321,4637.9,4637.5,3.309]
[1755231501777,0.912,4637.8,4637.5,3.309]
[1755231501977,0.108,4638.0,4637.5,3.309]
[1755231502179,0.912,4637.7,4637.5,3.309]
[1755231502672,0.108,4638.0,4637.5,3.309]
[1755231503075,0.108,4638.0,4637.8,2.15615544]
[1755231503458,0.108,4638.0,4637.9,2.15614825]
[1755231503646,0.4289,4638.1,4637.9,2.15614825]
[1755231503978,0.4289,4638.1,4637.8,2.15619283]
[1755231504177,0.912,4638.1,4637.8,2.15619283]
[1755231504381,0.912,4638.1,4637.9,2.15614403]
[1755231505249,0.91200001,4639.1,4638.2,2.15598639]
[1755231505455,0.108,4639.0,4638.3,3.31]
[1755231505685,0.108,4639.0,4638.8,2.15568712]
[1755231506282,0.108,4639.0,4638.3,3.418]
[1755231506583,1e-08,4639.1,4638.9,2.15568345]
[1755231506795,1e-08,4639.1,4639.0,2.83519335]
[1755231506999,1e-08,4639.1,4639.0,3.30019335]
[1755231507298,1e-08,4639.1,4639.0,3.27863699]
[1755231507462,1e-08,4639.1,4639.0,4.63312539]
[1755231507662,1e-08,4639.1,4639.0,4.50356903]
[1755231507913,1e-08,4639.1,4639.0,4.61156903]
[1755231509654,1e-08,4639.1,4639.0,3.68816903]
[1755231509881,1e-08,4639.1,4639.0,7.00016903]
[1755231510562,1e-08,4639.1,4639.0,7.46516903]
[1755231512178,1e-08,4639.1,4639.0,7.00016903]
[1755231513074,1e-08,4639.1,4639.0,7.46516903]
[1755231513981,1e-08,4639.1,4639.0,7.00016903]
[1755231515815,1e-08,4639.1,4639.0,7.46516903]
[1755231516513,1e-08,4639.1,4639.0,7.92356903]
[1755231518815,1e-08,4639.1,4639.0,7.46516903]
[1755231519116,1e-08,4639.1,4639.0,7.92356903]
[1755231520022,1e-08,4639.1,4639.0,7.46516903]
[1755231527523,1e-08,4639.1,4639.0,7.00016903]
[1755231527735,1e-08,4639.8,4639.7,2.70531176]
[1755231527916,1e-08,4639.8,4639.7,6.62493651]
[1755231528115,1e-08,4639.8,4639.7,6.7113834]
[1755231530317,1e-08,4639.8,4639.7,3.4093834]
[1755231530531,1e-08,4639.8,4639.7,6.1613834]
[1755231530532,0.91200001,4639.8,4639.7,6.1613834]
[1755231531059,0.91200001,4639.8,4639.7,5.56531176]
[1755231531216,0.91200001,4639.8,4639.7,6.11531176]
[1755231532150,0.91200001,4639.8,4639.7,5.56531176]
[1755231532449,0.91200001,4639.8,4639.7,6.11531176]
[1755231534352,0.91200001,4639.8,4639.7,3.41]
[1755231534568,0.91200001,4639.8,4639.7,0.108]
[1755231534859,1.02000001,4639.8,4639.4,2.15544855]
[1755231535026,0.927,4639.7,4639.4,2.15544855]
[1755231535223,1e-08,4639.8,4639.5,0.55]
[1755231535417,0.927,4639.7,4639.3,3.301]
[1755231535755,0.927,4639.6,4639.3,3.301]
[1755231536053,0.927,4639.5,4639.3,3.301]
[1755231536349,0.927,4639.4,4639.3,3.301]
[1755231536551,0.927,4639.4,4639.2,3.302]
[1755231536751,0.927,4639.3,4639.0,0.108]
[1755231536964,0.33452691,4639.7,4639.0,3.415]
[1755231537257,0.927,4639.2,4639.0,3.415]
[1755231537471,2.15536888,4639.6,4639.0,3.415]
[1755231537621,0.927,4639.1,4639.0,3.415]
[1755231537819,0.927,4639.1,4639.0,5.57063699]
[1755231539626,0.4944,4639.4,4639.0,5.5706296]
[1755231539933,0.927,4639.4,4639.1,0.0215559]
[1755231540138,0.927,4639.3,4639.2,3.305]
[1755231540333,0.108,4639.7,4639.2,3.305]
[1755231540558,0.927,4639.6,4639.2,5.46054208]
[1755231540736,0.927,4639.5,4639.2,5.46054208]
[1755231541066,0.927,4639.4,4639.2,3.305]
[1755231541241,0.927,4639.3,4638.9,3.305]
[1755231541437,0.108,4639.7,4638.9,3.305]
[1755231541757,0.927,4639.2,4638.9,3.305]
[1755231541965,0.927,4639.1,4638.9,3.305]
[1755231542134,0.927,4639.0,4638.9,3.305]
[1755231542326,0.927,4639.6,4638.9,3.305]
[1755231542533,0.927,4639.6,4639.1,2.15554407]
[1755231542867,0.4326,4639.5,4639.1,2.15554407]
[1755231543226,0.927,4639.4,4639.1,2.15554407]
[1755231543427,0.108,4639.7,4639.1,2.15554407]
[1755231543629,0.927,4639.3,4639.1,2.15554407]
[1755231543959,0.108,4639.7,4639.2,0.02155544]
[1755231544258,1e-08,4639.8,4639.3,2.15545168]
[1755231544560,0.927,4639.6,4639.3,2.15545168]
[1755231545342,1e-08,4639.8,4639.3,2.15545168]
[1755231545544,0.927,4639.7,4639.2,2.26353578]
[1755231545739,0.927,4639.6,4639.2,0.108]
[1755231546060,0.927,4639.5,4639.0,2.26362257]
[1755231546263,0.927,4639.5,4639.0,0.108]
[1755231546427,0.927,4639.4,4639.0,0.108]
[1755231546633,0.927,4639.3,4639.0,0.108]
[1755231546833,0.927,4639.2,4639.0,0.108]
[1755231547043,0.108,4639.6,4639.0,0.108]
[1755231547243,0.927,4639.1,4639.0,2.26363699]
[1755231547764,0.927,4639.1,4639.0,0.108]
[1755231548254,0.927,4639.5,4639.1,2.15557665]
[1755231548450,0.108,4639.6,4639.1,2.15557665]
[1755231548653,0.927,4639.4,4639.1,2.15557665]
[1755231548865,0.108,4639.6,4639.1,2.15557665]
[1755231549058,0.927,4639.5,4639.1,2.15557665]
[1755231549261,0.927,4639.4,4639.0,0.108]
[1755231549463,0.927,4639.4,4638.7,3.302]
[1755231549464,0.927,4639.3,4638.7,3.302]
[1755231549667,0.927,4639.2,4638.7,3.302]
[1755231549965,2.15564799,4639.0,4638.5,0.001]
[1755231550147,0.108,4638.9,4638.5,0.001]
[1755231550349,1.035,4638.9,4638.5,0.001]
[1755231550668,0.927,4638.8,4638.5,0.001]
[1755231551038,0.927,4638.8,4638.5,2.15686486]
[1755231551236,0.927,4638.7,4638.5,0.001]
[1755231551658,0.927,4638.6,4638.5,0.001]
[1755231552467,0.108,4638.9,4638.5,0.001]
[1755231552850,0.927,4638.8,4638.5,2.1568634]
[1755231553044,0.108,4638.9,4638.5,2.1568634]
[1755231553250,0.927,4638.7,4638.5,2.1568634]
[1755231553463,0.108,4638.9,4638.5,2.15686543]
[1755231553968,0.927,4638.8,4638.6,2.15581677]
[1755231554158,0.108,4638.9,4638.6,2.15581677]
[1755231554559,1.035,4638.9,4638.5,2.15686468]
[1755231554967,0.108,4638.9,4638.5,2.15686468]
[1755231555167,0.927,4638.8,4638.5,2.15686468]
[1755231555772,0.927,4638.8,4638.5,2.15684929]
[1755231555968,0.5406,4639.3,4638.6,0.108]
[1755231556145,0.5406,4639.3,4638.7,2.1557347]
[1755231556353,0.5406,4639.3,4638.7,5.4577347]
[1755231556746,0.5406,4639.3,4638.7,3.302]
[1755231557046,2.64994906,4639.2,4638.6,0.108]
[1755231557250,0.4944,4639.2,4638.6,0.108]
[1755231557453,0.927,4639.1,4638.6,0.108]
[1755231557654,0.927,4639.1,4638.6,2.26381057]
[1755231557856,0.4326,4639.0,4638.6,2.26381057]
[1755231558050,0.108,4639.3,4638.6,2.26381057]
[1755231558257,0.927,4638.9,4638.6,2.26381057]
[1755231558463,0.4944,4638.9,4638.6,3.03608665]
[1755231558673,0.4944,4638.9,4638.6,0.88027608]
[1755231558879,1.035,4639.3,4638.6,3.03609715]
[1755231559247,1.035,4639.3,4638.7,2.15576802]
[1755231560060,1.035,4639.3,4638.6,3.03609807]
[1755231560573,1.035,4639.3,4638.6,0.88027608]
[1755231560775,2.15559052,4639.1,4638.5,3.303]
[1755231561076,0.108,4638.9,4638.5,3.303]
[1755231561376,2.15582287,4638.6,4638.5,0.001]
[1755231561547,2.69497815,4638.6,4638.5,0.001]
[1755231561750,3.63247815,4638.6,4638.5,0.001]
[1755231561956,3.6488952,4638.6,4638.5,0.001]
[1755231562273,1.49307233,4638.6,4638.5,0.001]
[1755231562473,1.0455,4638.6,4638.5,0.001]
[1755231564389,1.0455,4638.6,4637.9,0.001]
[1755231564390,0.9375,4638.6,4637.9,0.001]
[1755231564598,3.7783,4638.5,4637.9,0.001]
[1755231565084,0.9375,4638.4,4637.9,0.001]
[1755231565456,0.9375,4638.3,4637.9,0.001]
[1755231565890,0.9375,4639.1,4638.0,0.02256101]
[1755231566090,1e-08,4639.8,4638.2,0.55]
[1755231566091,0.4683,4639.5,4638.2,0.55]
[1755231566381,0.4683,4639.5,4638.4,0.55]
[1755231566882,0.4683,4639.5,4638.5,2.15586935]
[1755231567391,0.4683,4639.5,4638.8,2.15568819]
[1755231567685,0.4683,4639.5,4638.9,2.15565677]
[1755231567885,0.4683,4639.5,4638.9,2.15564254]
[1755231568091,1e-08,4639.8,4638.6,0.55]
[1755231568277,1e-08,4639.8,4638.8,0.55]
[1755231568591,0.4683,4639.7,4638.7,0.55]
[1755231568780,0.01641705,4639.6,4638.7,0.55]
[1755231569169,5.93661536,4639.5,4638.3,2.15596031]
[1755231569371,7.358637,4639.4,4638.3,2.15591618]
[1755231569578,0.64049154,4639.4,4638.3,2.15591618]
[1755231569781,0.64049154,4639.4,4637.9,2.15711599]
[1755231569782,0.95391705,4639.3,4638.0,2.15707318]
[1755231570002,2.15559559,4639.1,4638.0,0.001]
[1755231570170,0.9375,4639.2,4638.3,2.15594743]
[1755231570507,3.93909915,4639.1,4638.1,2.1560178]
[1755231570800,3.09315388,4639.0,4638.0,0.001]
[1755231570958,0.95391705,4639.0,4638.0,0.001]
[1755231571164,4.2505,4638.9,4638.0,0.001]
[1755231571472,0.64061819,4638.8,4638.0,0.001]
[1755231571892,1.10981819,4638.8,4638.0,0.001]
[1755231572076,0.9375,4638.7,4638.0,0.001]
[1755231573296,0.64061819,4638.8,4638.0,0.001]
[1755231573493,0.9375,4638.6,4638.0,0.001]
[1755231573694,0.15781182,4638.5,4638.0,0.001]
[1755231573866,1.09531182,4638.5,4638.0,0.001]
[1755231574197,0.9375,4638.4,4638.0,0.001]
[1755231574402,0.108,4638.2,4638.0,0.001]
[1755231576580,0.108,4638.2,4638.0,2.15709799]
[1755231577632,0.4683,4639.3,4638.1,2.17757697]
[1755231577792,0.108,4638.6,4638.1,2.17757697]
[1755231578134,0.108,4638.6,4638.0,2.26509414]
[1755231578540,0.108,4638.6,4638.1,2.15604944]
[1755231579286,0.108,4638.6,4638.0,0.109]
[1755231579803,0.9375,4638.5,4638.0,0.001]
[1755231580104,0.108,4638.2,4638.0,0.001]
[1755231580523,2.15554844,4639.2,4638.2,2.15600879]
[1755231580800,4.24650001,4639.8,4638.6,2.15581084]
[1755231581106,0.108,4639.3,4638.7,2.15577073]
[1755231581309,0.108,4639.3,4638.6,0.108]
[1755231581310,0.108,4639.3,4638.6,2.26381562]
[1755231581704,0.108,4639.3,4638.7,2.15575765]
[1755231582292,0.95391705,4639.2,4638.6,0.108]
[1755231582495,2.1555974,4639.1,4638.6,0.108]
[1755231582735,0.108,4638.8,4637.9,0.001]
[1755231582905,1.16385974,4639.0,4637.9,0.001]
[1755231582906,0.108,4638.3,4637.9,0.001]
[1755231583217,0.01641705,4638.2,4637.9,0.001]
[1755231583422,0.95391705,4638.2,4637.9,0.001]
[1755231583990,0.9375,4638.1,4637.9,0.001]
[1755231584225,3.09355528,4638.1,4637.9,0.001]
[1755231584398,3.64572531,4638.1,4637.9,0.001]
[1755231584990,10.06686231,4638.1,4637.9,0.001]
[1755231585190,10.51219471,4638.1,4637.9,0.001]
[1755231587145,10.59861971,4638.1,4637.9,0.001]
[1755231587929,2.15610176,4638.0,4637.9,0.001]
[1755231588139,9.67463223,4638.0,4637.9,0.001]
[1755231588332,10.59571518,4638.0,4637.9,1e-08]
[1755231588730,10.70371518,4638.0,4637.9,1e-08]
[1755231589534,14.01571518,4638.0,4637.9,1e-08]
[1755231590727,0.55,4637.8,4636.6,1e-08]
[1755231590932,2.15670627,4636.7,4636.6,1e-08]
[1755231591251,3.321,4636.7,4636.6,1e-08]
[1755231591619,0.648228,4637.2,4636.6,1e-08]
[1755231591955,2.15657318,4637.0,4636.6,0.44210001]
[1755231592126,3.323,4636.9,4636.6,0.44210001]
[1755231592526,3.323,4636.8,4636.6,1e-08]
[1755231592724,3.323,4636.8,4636.7,0.4421]
[1755231593223,2.15644212,4637.3,4636.7,0.4421]
[1755231593446,3.323,4637.2,4636.7,0.4421]
[1755231593647,3.57928295,4637.2,4636.7,0.4421]
[1755231593950,2.15652506,4637.1,4636.6,1e-08]
[1755231594156,5.47948116,4637.2,4636.6,1e-08]
[1755231594952,0.4845,4637.5,4636.6,1e-08]
[1755231595151,2.15657595,4637.0,4636.6,1e-08]
[1755231595357,3.322,4636.9,4636.6,1e-08]
[1755231595935,3.321,4636.8,4636.6,1e-08]
[1755231598126,2.15652243,4637.1,4636.6,1e-08]
[1755231598355,2.15663453,4636.9,4636.6,1e-08]
[1755231598522,0.9158,4636.7,4636.6,1e-08]
[1755231598860,9.49364327,4636.7,4636.6,1e-08]
[1755231599360,9.06544327,4636.7,4636.6,1e-08]
[1755231599536,11.89684327,4636.7,4636.6,1e-08]
[1755231599737,12.16600695,4636.7,4636.6,1e-08]
[1755231599927,12.65750695,4636.7,4636.6,1e-08]
[1755231600135,13.57330695,4636.7,4636.6,1e-08]
[1755231600638,9.33850695,4636.7,4636.6,1e-08]
[1755231600842,5.58370627,4636.7,4636.6,1e-08]
[1755231604333,2.15648014,4637.2,4636.6,1e-08]
[1755231604567,0.108,4636.7,4636.6,0.44210001]
[1755231604764,3.426,4636.7,4636.6,0.44210001]
[1755231604946,0.108,4636.7,4636.6,0.44210001]
[1755231605144,0.108,4636.7,4636.6,3.0903528]
[1755231605392,2.58440335,4637.8,4636.9,2.15661325]
[1755231605393,0.108,4637.0,4636.9,2.15661325]
[1755231605550,0.9158,4638.3,4636.9,1.0416]
[1755231605551,0.108,4637.5,4636.9,1.0416]
[1755231605878,0.108,4637.5,4637.1,2.15650338]
[1755231606238,0.01641705,4637.4,4636.9,0.108]
[1755231606472,2.15656674,4637.0,4636.9,0.108]
[1755231606660,3.07236674,4637.0,4636.9,0.108]
[1755231606858,2.15670627,4636.7,4636.6,1e-08]
[1755231607074,3.428,4636.7,4636.6,1e-08]
[1755231607276,0.108,4636.7,4636.6,1e-08]
[1755231607445,5.58470627,4636.7,4636.6,1e-08]
[1755231607648,6.50050627,4636.7,4636.6,1e-08]
[1755231608789,7.36621908,4636.7,4636.6,1e-08]
[1755231610961,6.45041908,4636.7,4636.6,1e-08]
[1755231613486,5.58470627,4636.7,4636.6,1e-08]
[1755231614687,3.425,4636.7,4636.6,1e-08]
[1755231614862,0.108,4636.7,4636.6,0.93360001]
[1755231615489,0.108,4636.7,4636.6,0.44210001]
[1755231615694,3.317,4636.8,4636.6,0.93360001]
[1755231615854,3.317,4636.8,4636.6,0.49150001]
[1755231616054,3.317,4636.8,4636.7,0.4421]
[1755231616464,0.108,4637.0,4636.7,0.4421]
[1755231616669,3.317,4636.9,4636.7,0.4421]
[1755231617166,3.317,4636.9,4636.6,1e-08]
[1755231618660,3.317,4636.9,4636.7,0.4421]
[1755231619769,3.317,4636.9,4636.6,1e-08]
[1755231620695,0.01641705,4636.8,4636.6,1e-08]
[1755231620995,2.26470627,4636.7,4636.6,1e-08]
[1755231621299,3.18050627,4636.7,4636.6,1e-08]
[1755231622993,9.60164327,4636.7,4636.6,1e-08]
[1755231623180,10.63843235,4636.7,4636.6,1e-08]
[1755231623368,11.2352601,4636.7,4636.6,1e-08]
[1755231623767,11.34420523,4636.7,4636.6,1e-08]
[1755231624197,14.08411731,4636.7,4636.6,1e-08]
[1755231624410,14.65920523,4636.7,4636.6,1e-08]
[1755231624610,14.08411731,4636.7,4636.6,1e-08]
[1755231625183,10.76911731,4636.7,4636.6,1e-08]
[1755231625404,13.97417218,4636.7,4636.6,1e-08]
[1755231626419,9.28267102,4636.7,4636.6,1e-08]
[1755231626619,9.74397707,4636.7,4636.6,1e-08]
[1755231626784,12.59667102,4636.7,4636.6,1e-08]
[1755231627111,9.28267102,4636.7,4636.6,1e-08]
[1755231627409,12.59667102,4636.7,4636.6,1e-08]
[1755231628516,13.97298676,4636.7,4636.6,1e-08]
[1755231628916,13.51167102,4636.7,4636.6,1e-08]
[1755231629297,12.59667102,4636.7,4636.6,1e-08]
[1755231632526,13.51167102,4636.7,4636.6,1e-08]
[1755231633090,13.9729531,4636.7,4636.6,1e-08]
[1755231633307,13.97293922,4636.7,4636.6,1e-08]
[1755231633503,6.17153402,4636.7,4636.6,1e-08]
[1755231633704,5.57470627,4636.7,4636.6,1e-08]
[1755231634030,13.37209929,4636.7,4636.6,1e-08]
[1755231636334,13.37509929,4636.7,4636.6,1e-08]
[1755231637647,13.37709929,4636.7,4636.6,1e-08]
[1755231638051,10.06409929,4636.7,4636.6,1e-08]
[1755231638260,13.37609929,4636.7,4636.6,1e-08]
[1755231639040,12.46109929,4636.7,4636.6,1e-08]
[1755231639248,12.46009929,4636.7,4636.6,1e-08]
[1755231639409,0.11,4636.7,4636.6,0.46170001]
[1755231639609,3.421,4636.7,4636.6,0.46170001]
[1755231639849,0.11,4636.7,4636.6,0.46170001]
[1755231640051,3.421,4636.7,4636.6,0.92250001]
[1755231640744,3.421,4636.7,4636.6,0.46170001]
[1755231641614,3.421,4636.7,4636.6,1e-08]
[1755231643736,6.13566819,4636.7,4636.6,1e-08]
[1755231643948,7.05066819,4636.7,4636.6,1e-08]
[1755231644122,13.47180519,4636.7,4636.6,1e-08]
[1755231644322,13.93286456,4636.7,4636.6,1e-08]
[1755231647929,42.92835005,4636.7,4636.6,1e-08]
[1755231648154,36.50721305,4636.7,4636.6,1e-08]
[1755231648320,42.92835005,4636.7,4636.6,1e-08]
[1755231649147,42.92835005,4636.7,4636.1,1e-08]
[1755231649148,2.1568661,4636.4,4636.1,1e-08]
[1755231649350,10.32310251,4636.3,4636.1,1e-08]
[1755231649558,9.03931445,4636.2,4636.1,1e-08]
[1755231649761,10.06231445,4636.2,4636.1,1e-08]
[1755231651236,10.63886267,4636.2,4636.1,1e-08]
[1755231651444,11.19682459,4636.2,4636.1,1e-08]
[1755231651630,8.4633375,4636.2,4633.9,0.108]
[1755231651832,0.108,4634.3,4633.6,0.4495]
[1755231652044,3.309,4634.2,4633.7,0.4841]
[1755231652367,3.309,4634.2,4633.8,0.9336]
[1755231652552,3.309,4634.2,4633.7,0.31997533]
[1755231652746,3.309,4634.2,4633.9,0.9336]
[1755231652937,3.309,4634.2,4634.0,0.9336]
[1755231653142,5.46688907,4634.2,4633.7,0.31997533]
[1755231653342,3.309,4634.2,4633.6,0.4495]
[1755231653648,2.15822708,4633.5,4633.1,0.56224923]
[1755231653846,2.17468702,4633.4,4633.1,0.11274923]
[1755231654047,0.108,4633.2,4632.6,2.26661127]
[1755231654253,0.108,4633.2,4632.8,0.4495]
[1755231654254,3.311,4633.1,4632.8,0.4495]
[1755231654573,3.311,4633.1,4632.9,0.4495]
[1755231654730,3.311,4633.1,4633.0,0.9336]
[1755231655376,3.311,4633.1,4633.0,0.4495]
[1755231655689,3.31,4633.1,4633.0,0.9336]
[1755231656837,0.4843,4634.6,4633.1,2.15838207]
[1755231657048,0.108,4633.5,4633.2,3.61696003]
[1755231657247,2.15787789,4634.2,4633.3,0.4495]
[1755231657248,3.31,4633.8,4633.3,0.4495]
[1755231657461,3.31,4633.8,4633.4,0.4495]
[1755231658173,3.31,4633.8,4633.2,2.79134566]
[1755231658343,3.31,4633.8,4633.2,0.5575]
[1755231658544,3.31,4633.8,4633.2,0.4495]
[1755231658770,0.108,4633.4,4632.7,0.108]
[1755231658969,0.108,4633.4,4632.7,2.15856127]
[1755231658970,3.311,4633.3,4632.7,2.15856127]
[1755231659763,3.311,4633.3,4632.5,0.108]
[1755231659967,0.108,4633.0,4632.6,0.4495]
[1755231660168,2.15787313,4634.2,4632.8,2.15852184]
[1755231660474,0.108,4633.5,4633.0,2.15842866]
[1755231660660,0.108,4633.5,4632.9,0.4841]
[1755231660865,0.108,4633.5,4633.0,2.15842114]
[1755231661258,0.108,4633.5,4633.0,2.60792114]
[1755231661457,0.108,4633.5,4633.0,0.4495]
[1755231662179,0.108,4633.5,4632.8,0.108]
[1755231662381,0.108,4633.5,4632.8,2.26647705]
[1755231663312,2.26619707,4633.5,4632.7,0.001]
[1755231663509,0.108,4633.5,4632.7,0.001]
[1755231664090,0.108,4633.5,4632.9,2.15844037]
[1755231664302,0.108,4633.5,4632.9,0.4426042]
[1755231664614,0.108,4633.5,4633.2,2.15831621]
[1755231664820,0.108,4633.5,4633.3,0.4495]
[1755231665218,0.108,4633.5,4633.4,0.4495]
[1755231665419,0.108,4633.5,4633.2,0.4841]
[1755231665586,0.108,4633.5,4633.2,0.4495]
[1755231665803,0.108,4633.5,4632.9,0.4426042]
[1755231665998,0.108,4633.5,4632.9,2.60106712]
[1755231666614,0.108,4633.5,4632.9,0.4426042]
[1755231666817,0.108,4633.5,4633.0,0.4495]
[1755231667331,0.108,4633.5,4632.9,0.4426042]
[1755231668204,0.108,4633.5,4632.8,2.15851775]
[1755231668915,0.108,4633.5,4632.7,2.15956776]
[1755231669509,3.21670047,4633.5,4632.7,0.001]
[1755231669909,1.0585,4633.5,4632.7,0.001]
[1755231670110,1.0585,4633.5,4632.7,2.15955266]
[1755231670311,1.0585,4633.5,4632.8,2.15851368]
[1755231670522,0.108,4633.5,4632.8,2.15851368]
[1755231670904,3.417,4633.5,4632.7,2.15956682]
[1755231671442,3.417,4633.5,4632.8,2.15851889]
[1755231671628,3.417,4633.5,4632.9,2.15846921]
[1755231672138,0.108,4633.5,4633.2,2.15833089]
[1755231672324,0.108,4633.5,4633.3,0.4495]
[1755231674023,0.108,4633.5,4633.0,2.15842489]
[1755231674338,0.108,4633.5,4632.9,2.83481419]
[1755231674742,0.108,4633.5,4633.0,2.15842853]
[1755231675717,0.108,4633.5,4633.1,1.23866137]
[1755231675914,0.108,4633.5,4633.2,0.4495]
[1755231676320,0.108,4633.5,4633.3,0.4495]
[1755231676539,2.31568956,4634.6,4633.4,2.15824232]
[1755231676844,0.108,4634.0,4633.5,0.95518195]
[1755231677048,0.108,4634.0,4633.6,2.60764917]
[1755231677343,0.108,4634.0,4633.7,2.15807669]
[1755231677547,0.108,4634.0,4633.7,2.60757669]
[1755231678117,0.8,4634.3,4634.0,2.70794103]
[1755231678330,0.9505,4635.8,4634.2,0.55]
[1755231678653,2.1572365,4635.6,4634.7,2.15762811]
[1755231679013,5.47217796,4635.7,4634.7,2.15762811]
[1755231679219,0.64225919,4635.6,4634.6,0.4495]
[1755231679446,3.33141705,4635.5,4634.4,0.55]
[1755231679634,0.01641705,4635.5,4634.4,0.55]
[1755231679835,2.15721343,4635.7,4634.7,2.15763634]
[1755231680033,3.314,4635.6,4634.7,2.15763634]
[1755231680339,5.47122268,4635.6,4634.6,2.15768329]
[1755231680540,0.37983,4635.5,4634.6,2.15768329]
[1755231680748,3.314,4635.4,4634.7,2.15761581]
[1755231682362,0.8,4635.3,4634.8,2.15757302]
[1755231682741,0.8,4635.3,4634.7,2.15763282]
[1755231683648,0.8,4635.3,4634.2,0.55]
[1755231683858,3.312,4635.2,4634.2,0.55]